Cogmind - Beta 15 @@@ ROGUE MODE // 2025.05.08 @ 19:00:32 Player: lucasboxerhead Result: Self-destructed Performance ------------- Evolutions (1) 500 Regions Visited (3) 600 Robots Destroyed (45) 225 Value Destroyed (1007) 1007 Prototype IDs (0) 0 Alien Tech Used (0) 0 Bonus (87) 87 TOTAL SCORE: 2419 Bonus ------- Follower Combat Kills 87 Cogmind --------- Core Integrity 187/400 Matter 423/450 Energy 100/100 System Corruption 0% Temperature Cool (5) Movement Core (550) Ox10 Location -9/Storage Parts ------- > --- POWER (1) -------- (None) > --- PROPULSION (3) --- (None) > --- UTILITY (3) ------ Large Storage Unit Large Matter Pod Light Armor Plating > --- WEAPON (2) ------- Shotgun Shotgun > --- INVENTORY (15) --- Light Treads Improved Heat Sink Cooling System Medium Matter Pod (100) Improved Lightning Gun Advanced Beam Cannon Advanced Beam Cannon Heavy Assault Rifle Shotgun Shotgun Light Cannon Grenade Launcher Grenade Launcher Peak State ------------ > --- POWER ------------ Improved Ion Engine > --- PROPULSION ------- Advanced Treads Advanced Treads Advanced Treads > --- UTILITY ---------- Large Storage Unit Large Matter Pod Light Armor Plating > --- WEAPON ----------- Shotgun Shotgun > --- INVENTORY -------- Light Treads Advanced Treads Cooling System Medium Matter Pod Light Armor Plating Improved Lightning Gun Advanced Beam Cannon Advanced Beam Cannon Heavy Assault Rifle Shotgun Shotgun Shotgun Light Cannon Grenade Launcher Grenade Launcher [Rating: 21] Favorites ----------- Power Ion Engine Engine Ion Engine Propulsion Advanced Treads Treads Advanced Treads Utility Large Storage Unit Storage Large Storage Unit Protection Light Armor Plating Weapon Grenade Launcher Energy Gun Small Laser Ballistic Gun Assault Rifle Ballistic Cannon Light Cannon Launcher Grenade Launcher Build | -11 -10 -9 -9 ------- Run | Yrd Mat Mat Sto Slots Evolved 2 | . . 2 . Power . | . . . . Propulsion 1 | . . 1 . Utility 1 | . . 1 . Weapon . | . . . . Parts Attached 23 | 7 5 4 7 Power 3 | 2 . . 1 Engine 3 | 2 . . 1 Core . | . . . . Reactor . | . . . . Propulsion 6 | 2 . 3 1 Treads 6 | 2 . 3 1 Leg . | . . . . Wheel . | . . . . Hover . | . . . . Flight . | . . . . Utility 6 | 1 2 1 2 Device . | . . . . Storage 4 | 1 2 1 . Processor . | . . . . Hackware . | . . . . Protection 2 | . . . 2 Artifact . | . . . . Weapon 8 | 2 3 . 3 Energy Gun 1 | 1 . . . Energy Cannon . | . . . . Ballistic Gun 4 | 1 . . 3 Ballistic Cannon 1 | . 1 . . Launcher 2 | . 2 . . Special Weapon . | . . . . Impact Weapon . | . . . . Slashing Weapon . | . . . . Piercing Weapon . | . . . . Special Melee Weapon . | . . . . Unidentified Prototypes . | . . . . Parts Lost 5 | . . . 5 Power 1 | . . . 1 Propulsion 3 | . . . 3 Utility 1 | . . . 1 Weapon . | . . . . Highest Loss Streak 3 | . . . 3 To Critical Strikes . | . . . . Average Backups 7 | . 3 11 14 Power . | . . 1 . Propulsion 1 | . . 2 2 Utility 1 | . . 1 2 Weapon 4 | . 2 5 8 Tool/Special . | . . . . Unused Backups 11 | . . 1 10 Power 1 | . . . 1 Propulsion . | . . . . Utility 2 | . . 1 1 Weapon 8 | . . . 8 Tool/Special . | . . . . Average Slot Usage (%) 94 | . 96 86 98 Engine 12 | . 14 11 11 Treads 29 | . 28 31 32 Storage 23 | . 24 22 22 Protection 2 | . . . 10 Energy Gun 1 | . 3 . . Ballistic Gun 7 | . 7 . 14 Ballistic Cannon 5 | . 4 11 3 Launcher 10 | . 12 11 3 Peak Build Rating 21 | 6 7 16 21 Average Rating 11 | 4 6 14 18 On Entrance 7 | . 6 7 16 Naked Turns . | . . . . Heaviest Build 39 | 13 33 34 39 Greatest Support 66 | 40 40 66 66 Greatest Overweight (x) . | . . . . Average Overweight (x) . | . . . . Largest Inventory Capacity 15 | 8 15 15 15 Average Capacity 11 | 7 9 15 15 Most Carried 15 | 1 7 15 15 Average Carried 7 | . 3 11 14 Final Capacity 15 | 8 15 15 15 Final Carried 15 | . 6 15 13 Class Distribution -------------------- 100% | Mutant Dominant Class ---------------- Mutant | -10/Materials Mutant | -9/Materials Mutant | -9/Storage Resources | -11 -10 -9 -9 ----------- Run | Yrd Mat Mat Sto Matter Collected 1175 | 229 267 156 523 Remotely . | . . . . Salvage Created 1155 | . 401 219 535 Parts 87 | . 40 20 27 Haulers Intercepted 1 | . . 1 . Recyclers Shooed 4 | . 2 . 2 Parts Field Recycled . | . . . . Retrieved Matter . | . . . . Parts Self-Destructed . | . . . . Prevented . | . . . . Kills | -11 -10 -9 -9 ------- Run | Yrd Mat Mat Sto Combat Hostiles Destroyed 28 | . 9 10 9 Melee 1 | . 1 . . Guns 7 | . 2 . 5 Cannons 6 | . . 5 1 AOE 14 | . 6 5 3 Classes Destroyed 9 | . 4 4 1 Worker 1 | . 1 . . Builder 7 | . 5 . 2 Hauler 1 | . . 1 . Recycler 4 | . . 1 3 Watcher 4 | . 3 1 . Swarmer 10 | . . 7 3 Grunt 12 | . 9 . 3 Brawler 1 | . . . 1 Sentry 5 | . . 3 2 Best Kill Streak 8 | . 8 5 5 Combat Bots Only 4 | . 3 4 4 Max Kills in Single Turn 3 | . 3 3 2 Gunslinging . | . . . . Exploded 2 | . 2 2 2 Melee 1 | . 1 . . Uniques/NPCs Destroyed . | . . . . Combat | -11 -10 -9 -9 -------- Run | Yrd Mat Mat Sto Hostile Shots Fired 164 | . 31 42 91 Missed 37 | . 8 9 20 Hits 127 | . 23 33 71 Melee 9 | . . . 9 Projectile 118 | . 23 33 62 Critical Strikes 8 | . 2 2 4 Damage Taken 1650 | . 283 357 1010 Core 282 | . 69 42 171 Absorbed by Shields . | . . . . Core Remaining (%) 86 | 100 72 . . Volleys Fired 107 | . 38 31 38 Largest 2 | . 2 2 2 Hottest 60 | . 60 60 46 Shots Fired 138 | . 43 34 61 Gun 84 | . 32 . 52 Cannon 40 | . 3 30 7 Launcher 14 | . 8 4 2 Special . | . . . . Kinetic 109 | . 20 30 59 Thermal 15 | . 15 . . Explosive 14 | . 8 4 2 Electromagnetic . | . . . . Robot Hit Streak 8 | . 5 5 8 Robot Miss Streak 4 | . 3 4 3 Penetration Max . | . . . . Secondary Targets 2 | . . . 2 Max Gunslinging Chain 1 | . . . 1 Shots Hit Robots 97 | . 22 21 54 Core Hits 82 | . 31 20 31 Critical Kills . | . . . . Critical Parts Destroyed 1 | . . . 1 Critical Strikes 2 | . . 1 1 Destroy 1 | . . . 1 Blast 1 | . . 1 . Melee Attacks . | . . . . Impact . | . . . . Slashing . | . . . . Piercing . | . . . . Sneak Attacks . | . . . . Combat Hostiles . | . . . . Follow-up Attacks . | . . . . Damage Inflicted 3018 | . 1120 727 1171 Guns 1008 | . 207 . 801 Cannons 437 | . . 347 90 Explosions 1543 | . 900 374 269 Melee . | . . . . Ramming 30 | . 13 6 11 Kinetic 1360 | . 122 347 891 Thermal 85 | . 85 . . Explosive 1543 | . 900 374 269 Electromagnetic . | . . . . Impact . | . . . . Slashing . | . . . . Piercing . | . . . . Highest Corruption . | . . . . Average Corruption . | . . . . Corruption Purged . | . . . . Corruption Blocked . | . . . . Overload Shots . | . . . . Overflow Damage 73 | . 37 . 36 Projectiles . | . . . . Explosions 73 | . 37 . 36 Melee . | . . . . Knockbacks 1 | . . 1 . Impact . | . . . . Kinetic 1 | . . 1 . Secondary . | . . . . Self-Inflicted Damage 23 | . 23 . . Shots 1 | . 1 . . Rammed 11 | 1 7 2 1 Targets Rammed 12 | 1 8 2 1 Kicked . | . . . . Crushed 1 | . 1 . . Highest Temperature 76 | . 22 19 76 Average Temperature 21 | . 10 4 33 Received Heat Transfer 603 | . 186 99 318 Siege Activations . | . . . . Martial Activations . | . . . . Shielding Activations . | . . . . Robots Disrupted . | . . . . Combat Hostiles . | . . . . Robots Corrupted . | . . . . Combat Hostiles . | . . . . Parts Fried . | . . . . Impact Corruptions . | . . . . Robots Melted . | . . . . Combat Hostiles . | . . . . Parts Melted . | . . . . Heat Transferred 200 | . 200 . . Parts Sabotaged . | . . . . Parts Stolen . | . . . . Parts Stripped . | . . . . Power Chain Reactions . | . . . . Alert | -11 -10 -9 -9 ------- Run | Yrd Mat Mat Sto Maximum Alert Level . | . . . . Low Security (%) 100 | 100 100 100 100 Level 1 . | . . . . Level 2 . | . . . . Level 3 . | . . . . Level 4 . | . . . . Level 5 . | . . . . High Security . | . . . . Max Security . | . . . . Peak Influence 192 | . 178 192 192 Initial 62 | . . 26 62 Average 100 | . 77 124 154 Influence Increases 1067 | . 394 313 360 Destroy 0b10 Robot/C 620 | . 180 200 240 Destroy 0b10 Robot/NC 85 | . 45 15 25 Destroy Leader 150 | . 46 54 50 Allied During Kill 9 | . . . 9 Successful Hack 14 | . 7 . 7 Disable Machine 90 | . 60 15 15 Destroy Structure 99 | . 56 29 14 Influence Decreases 905 | . 332 226 347 Entered New Map 123 | . . 36 87 Time Decay 692 | . 332 190 170 Lost Part 50 | . . . 50 Lost Ally 40 | . . . 40 Squads Dispatched 5 | . 2 . 3 Investigation 1 | . 1 . . Extermination . | . . . . Reinforcement 1 | . 1 . . Assault 2 | . . . 2 Garrison 1 | . . . 1 Intercept . | . . . . Searches Triggered . | . . . . Construction Impeded . | . . . . Haulers Reinforced . | . . . . Active Scanning Responses . | . . . . Cargo Convoy Interrupts . | . . . . Stealth | -11 -10 -9 -9 --------- Run | Yrd Mat Mat Sto Distress Signals 2 | . 1 1 . Communications Jammed . | . . . . Distress Signals . | . . . . Times Spotted 49 | . 16 12 21 Peak Tracking Total 7 | . 4 3 7 Tactical Retreats . | . . . . Traps | -11 -10 -9 -9 ------- Run | Yrd Mat Mat Sto Traps Triggered 1 | . 1 . . Indirectly . | . . . . Trap Hack Attempts . | . . . . Triggered . | . . . . Disarmed . | . . . . Reprogrammed . | . . . . Reused . | . . . . Traps Extracted . | . . . . Installed . | . . . . Triggered . | . . . . Machines | -11 -10 -9 -9 ---------- Run | Yrd Mat Mat Sto Machines Disabled 6 | . 4 1 1 Max in Single Turn 2 | . 2 1 1 Machines Repaired . | . . . . Machines Dismantled . | . . . . Machines Sabotaged . | . . . . Overloaded Fab Kills . | . . . . Hacking | -11 -10 -9 -9 --------- Run | Yrd Mat Mat Sto Machines Accessed 5 | . 3 . 2 Terminals 4 | . 3 . 1 Fabricators . | . . . . Repair Stations . | . . . . Recycling Units 1 | . . . 1 Scanalyzers . | . . . . Garrison Access . | . . . . Total Hacks 9 | . 6 . 3 Successful 3 | . 1 . 2 Failed 6 | . 5 . 1 Catastrophic 2 | . 2 . . Database Lockouts . | . . . . Manual . | . . . . Terminals 8 | . 6 . 2 Fabricators . | . . . . Repair Stations . | . . . . Recycling Units 1 | . . . 1 Scanalyzers . | . . . . Garrison Access . | . . . . Terminal Hacks 2 | . 1 . 1 Open Door 1 | . . . 1 Recall Investigation 1 | . 1 . . Fabricator Hacks . | . . . . Repair Station Hacks . | . . . . Recycling Unit Hacks 1 | . . . 1 Report Inventory 1 | . . . 1 Scanalyzer . | . . . . Garrison Access Hacks . | . . . . Unauthorized Hacks . | . . . . Terminals . | . . . . Fabricators . | . . . . Repair Stations . | . . . . Recycling Units . | . . . . Scanalyzers . | . . . . Garrison Access . | . . . . Data Cores Recovered . | . . . . Used . | . . . . Hacking Detections 3 | . 2 . 1 Full Trace Events . | . . . . Feedback Events . | . . . . Feedback Blocked . | . . . . Robot Schematics Acquired . | . . . . Robots Built . | . . . . Authchips . | . . . . Time . | . . . . Total Robot Build Rating . | . . . . Part Schematics Acquired . | . . . . Parts Built . | . . . . Authchips . | . . . . Time . | . . . . Total Part Build Rating . | . . . . Parts Repaired . | . . . . Time . | . . . . Parts Recycled . | . . . . Recycled Matter . | . . . . Retrieved Matter . | . . . . Retrieved Components . | . . . . Parts Scanalyzed . | . . . . Part Schematics Acquired . | . . . . Parts Damaged . | . . . . Bothacking | -11 -10 -9 -9 ------------ Run | Yrd Mat Mat Sto Used RIF Installer . | . . . . Robots Hacked . | . . . . Non-combat . | . . . . Combat . | . . . . Robot Hacks Applied . | . . . . Relay Couplers Released . | . . . . Fabnet Peak Effective % . | . . . . Robots Rewired . | . . . . Allies Hacked . | . . . . Hacks Repelled . | . . . . Allies | -11 -10 -9 -9 -------- Run | Yrd Mat Mat Sto Total Allies 2 | . . . 2 Largest Group 2 | . . . 2 Highest-Rated Group 62 | . . . 62 Highest-Rated Ally 31 | . . . 31 Total Orders . | . . . . Ally Attacks 13 | . . . 13 Total Damage 232 | . . . 232 Kills 3 | . . . 3 Allies Corrupted . | . . . . Allies Melted . | . . . . Intel | -11 -10 -9 -9 ------- Run | Yrd Mat Mat Sto Active Infowar (turns) . | . . . . Robot Analysis Total . | . . . . Derelict Logs Recovered . | . . . . Drone Launches . | . . . . Drone Recoveries . | . . . . Exploration | -11 -10 -9 -9 ------------- Run | Yrd Mat Mat Sto Turns Passed 1656 | 86 827 390 353 Spaces Moved 859 | 49 440 209 161 Core 4 | 4 . . . Treads 855 | 45 440 209 161 Legs . | . . . . Wheels . | . . . . Hover . | . . . . Flight . | . . . . Fastest Speed 50 | 50 160 145 145 Average Speed 153 | 151 160 145 145 Slowest Speed 160 | 160 160 160 145 Overloaded Moves . | . . . . Propulsion Burnouts . | . . . . Robots Hopped . | . . . . Potential Cave-ins . | . . . . Cave-ins Triggered . | . . . . Exploration Rate (%) 27 | 5 63 21 22 Regions Visited 3 Branch Regions 1 Pre-discovered Areas . | . . . . Known Exits Taken . | . . . . Unknown Exits Taken 3 | 1 1 1 . Scrap Searched . | . . . . Spaces Dug . | . . . . Terrain Destroyed 122 | . 78 27 17 Melee . | . . . . Projectile . | . . . . AOE 122 | . 78 27 17 Terrain Rammed . | . . . . Walls Destroyed . | . . . . Machines Disabled . | . . . . Actions | -11 -10 -9 -9 --------- Run | Yrd Mat Mat Sto Total 1058 | 58 517 261 222 Wait 19 | 1 12 3 3 Move 856 | 48 439 208 161 Hop . | . . . . Pick Up 21 | . 7 9 5 Fast Attach 10 | 6 2 2 . Attach 9 | . 2 . 7 Detach 6 | . 3 1 2 Swap 6 | 1 2 2 1 Drop 12 | 1 4 3 4 Fire 107 | . 38 31 38 Melee . | . . . . Ram . | . . . . Kick . | . . . . Crush 12 | 1 8 2 1 Escape Stasis . | . . . . Rewire . | . . . . Trap . | . . . . Miscellaneous . | . . . . Route ------- -11/Scrapyard -10/Materials (discovered 2 exits: *Mat / [*Min]) -9/Materials -9/Storage History --------- Turn | Location | Event 2 | -11/Scrapyard | Met Revision 17 9 | -11/Scrapyard | Discovered new exit (range 13) 87 | -11/Scrapyard | Entered Materials 256 | -10/Materials | Discovered new exit (range 7) 310 | -10/Materials | Build established: Mutant 756 | -10/Materials | Discovered new exit (range 10) 914 | -10/Materials | Entered another Materials area 914 | -9/Materials | Evolved 2 slots: Propulsion x1, Utility x1 1247 | -9/Materials | Discovered new exit (range 14) 1304 | -9/Materials | Entered Storage 1541 | -9/Storage | Met a pair of Derelict thieves 1563 | -9/Storage | Garrison activated, responded to threat 1648 | -9/Storage | Core integrity fell below 50% 1657 | -9/Storage | Self-destructed Last Messages --------------- cursor and enables keyboard-controlled map look functionality. For hardcore keyboard-only players. 01617_ Acquired 169 matter. 01619_ K-01 Serf collects debris. 01642_ Acquired Imp. Heat Sink. 01644_ C-30 ARC bursts open, deploying its payload. 01644_ G-47 Trooper unfolds itself. 01644_ B-36 Bruiser unfolds itself. 01644_ L-31 Rogue unfolds itself. 01644_ M-13 Machinist unfolds itself. 01645_ K-01 Serf collects debris. 01647_ Shotgun severed. 01648_ B-36 Bruiser destroyed. 01649_ K-01 Serf collects debris. 01649_ Adv. Treads severed. 01650_ Adv. Treads destroyed. 01652_ K-01 Serf cleans the Heavy Doors. 01657_ Imp. Ion Engine destroyed. Map ----- +----------------------------------------------------+ | ???????????????#### # # #????????????? | | ??????????????????# # # #????????????? | | ??????????????????# # ! """ # #????????????? | | ??????????????????# # """ + +????????????? | | ??????????????????# # """ # #????????????? | | ??????????????????#*# "Y" # #????????????? | | ??????????????#####!# """ # #????????????? | | ??????????????+ =! *# # #????????????? | | ??????????????# =[*########### #????????????? | | ?????????+###+#= ! ]#####?????# #????????????? | | ?? = + #?????# #????????????? | | ?? ######## #T###?????# ##########???? | | ??? ??????????# ###???????# # #???? | | ??##?????????????## ##????????# # #???? | | ?????????????????# ########## # """" #???? | | ?????????????????# # "??"" #???? | | ?????????????????# ########## + "???"" #???? | | ?????????????????#####????????# # ""???" #???? | | ??????????????????????????????# # ""??" #???? | | ??????????????????????????????# # """" #???? | | ??????????????????????######### # #???? | | ??????????????????????#[[!!#%=# ##########???? | | ??????????????????????#=[*s"k%#=% #????????????? | | ??????????????????????#[*=gbs%+%[|#????????????? | | ??????????????????????#%!*l"=!#!! #????????????? | | ??????????????????????#/]@=#T## #????????????? | | ??????????????????????#]*[=#### #????????????? | | ??????????????????????######??# #????????????? | | ??????????????????????????????# #????????????? | | ??????????????????????????????# #????????????? | | ??????????????????????????????# #????????????? | | ??????????????????????????????# #????????????? | | ??????????????????????????????? #????????????? | | ??????????????????????????????? +????????????? | | ??????????????????????????????? #????????????? | | ??????????????????????????????? #????????????? | | ??????????????????????????????? #????????????? | | ??????????????????????????????? ?????????????? | | ???????????????????????????????????????????????? | | ???????????????????????????????????????????????? | | ???????????????????????????????????????????????? | | ???????????????????????????????????????????????? | | ???????????????????????????????????????????????? | | ???????????????????????????????????????????????? | | ???????????????????????????????????????????????? | | ???????????????????????????????????????????????? | | ???????????????????????????????????????????????? | | ???????????????????????????????????????????????? | | ???????????????????????????????????????????????? | | ???????????????????????????????????????????????? | +----------------------------------------------------+ Best States ------------- Heat Dissipation 28 Energy Generation 12 Energy Capacity 265 Matter Stores 450 Matter Capacity 450 Sight Range 16 Terrain Scan Density 10 Armor Coverage 150 Evasion (%) 40 Recoil Reduction 3 Item Schematics ----------------- None Robot Schematics ------------------ None Fabricated ------------ Nothing Repaired ---------- Nothing Alien Tech Used ----------------- None Achievements -------------- None Challenges ------------ None Game ------ Seed LightpackCoreDiverter Manual? 0 Play Time 00:19:37 Cumulative 16.7 hours Start 2025.05.08 @ 18:41:19 End 2025.05.08 @ 19:00:32 Sessions 1 Manual Loads 0 Difficulty Rogue Special Mode None Game No. 75 Rogue 72 Adventurer 3 Explorer 0 Win Type - Total 0 Types 0/0/0/0/0/0/0/0/0/0 Lore% 7 Gallery% 19 Achievement% 18 Wizard Run 0 Options --------- Layout 1 ASCII 0 Keyboard 1 Movement Numpad Keybinds 0 Fullscreen 1 Font 24/Smallcaps Map View 50x35 Zoom Use 0% Tactical HUD 1 Map Filters NONE Filters NONE Steam 1 RUN: 35b40149-75d9-498b-a3f6-d851fdc13033